[Event "Late-Titled-Tuesday-Blitz-February-06-2024"]
[Site "Chess.com"]
[Date "2024.02.06"]
[Round "11"]
[White "JonasGallasch"]
[Black "jaskol95"]
[Result "1/2-1/2"]
[WhiteElo "2431"]
[BlackElo "2577"]
[TimeControl "180+1"]
[EndTime "16:06:09 PST"]
[Termination "Game drawn - insufficient material"]

1. d4 {[%clk 0:02:52.6]} 1... d5 {[%clk 0:03:00.2]} 2. c4 {[%clk 0:02:51.1]}
2... e5 {[%clk 0:03:00.5]} 3. dxe5 {[%clk 0:02:46.2]} 3... d4 {[%clk 0:03:01.4]}
4. a3 {[%clk 0:02:46.5]} 4... Nc6 {[%clk 0:02:59.8]} 5. Nf3 {[%clk 0:02:46.7]}
5... a5 {[%clk 0:03:00.2]} 6. e3 {[%clk 0:02:46.2]} 6... Bc5 {[%clk 0:02:59.5]}
7. exd4 {[%clk 0:02:32.1]} 7... Bxd4 {[%clk 0:02:59.7]} 8. Be2 {[%clk
0:02:28.6]} 8... Bf5 {[%clk 0:02:39.4]} 9. O-O {[%clk 0:02:24.9]} 9... Bxe5
{[%clk 0:02:38.2]} 10. Nxe5 {[%clk 0:02:16.8]} 10... Nxe5 {[%clk 0:02:39.1]} 11.
Bf4 {[%clk 0:02:14]} 11... Qe7 {[%clk 0:02:19.3]} 12. Bxe5 {[%clk 0:01:55.9]}
12... Qxe5 {[%clk 0:02:16.3]} 13. Re1 {[%clk 0:01:56.4]} 13... Rd8 {[%clk
0:01:56.1]} 14. Bd3 {[%clk 0:01:51.5]} 14... Be4 {[%clk 0:01:40.4]} 15. Nc3
{[%clk 0:01:47.8]} 15... f5 {[%clk 0:01:33.3]} 16. Nxe4 {[%clk 0:01:29.4]} 16...
fxe4 {[%clk 0:01:29.3]} 17. Rxe4 {[%clk 0:01:18.7]} 17... Qxe4 {[%clk
0:01:29.1]} 18. Bxe4 {[%clk 0:01:19.6]} 18... Rxd1+ {[%clk 0:01:29]} 19. Rxd1
{[%clk 0:01:20.5]} 19... c6 {[%clk 0:01:22.8]} 20. Rd3 {[%clk 0:01:14.2]} 20...
Nf6 {[%clk 0:01:22.2]} 21. Bf3 {[%clk 0:01:13.5]} 21... O-O {[%clk 0:01:01.4]}
22. Kf1 {[%clk 0:01:11]} 22... Re8 {[%clk 0:00:54.7]} 23. b4 {[%clk 0:01:07.5]}
23... axb4 {[%clk 0:00:54.5]} 24. axb4 {[%clk 0:01:08.4]} 24... Kf7 {[%clk
0:00:52.3]} 25. b5 {[%clk 0:01:08.1]} 25... cxb5 {[%clk 0:00:51.7]} 26. cxb5
{[%clk 0:01:09]} 26... Re5 {[%clk 0:00:23.5]} 27. Rb3 {[%clk 0:01:08.7]} 27...
b6 {[%clk 0:00:22]} 28. Bc6 {[%clk 0:01:08.3]} 28... Ke7 {[%clk 0:00:21.2]} 29.
Ra3 {[%clk 0:01:04.4]} 29... Kd6 {[%clk 0:00:18]} 30. Ra6 {[%clk 0:01:03.2]}
30... Kc5 {[%clk 0:00:17.9]} 31. Ra7 {[%clk 0:01:03.7]} 31... g6 {[%clk
0:00:17.3]} 32. Rf7 {[%clk 0:01:03.6]} 32... Ne4 {[%clk 0:00:14.9]} 33. Bxe4
{[%clk 0:00:59.1]} 33... Rxe4 {[%clk 0:00:15.4]} 34. Rxh7 {[%clk 0:00:59.8]}
34... Kxb5 {[%clk 0:00:16]} 35. Rh6 {[%clk 0:00:48.8]} 35... g5 {[%clk
0:00:04.4]} 36. Rh5 {[%clk 0:00:47.2]} 36... Re5 {[%clk 0:00:04.2]} 37. h4
{[%clk 0:00:47.3]} 37... Kc4 {[%clk 0:00:04.8]} 38. Rxg5 {[%clk 0:00:44.2]}
38... Re4 {[%clk 0:00:04.1]} 39. h5 {[%clk 0:00:23]} 39... b5 {[%clk 0:00:03.3]}
40. f3 {[%clk 0:00:20.9]} 40... Rh4 {[%clk 0:00:02.7]} 41. Rg4+ {[%clk
0:00:17.9]} 41... Rxg4 {[%clk 0:00:03.2]} 42. fxg4 {[%clk 0:00:18.8]} 42... b4
{[%clk 0:00:03.9]} 43. h6 {[%clk 0:00:19.5]} 43... b3 {[%clk 0:00:04.6]} 44. h7
{[%clk 0:00:20.2]} 44... b2 {[%clk 0:00:05.4]} 45. h8=Q {[%clk 0:00:20.3]} 45...
b1=Q+ {[%clk 0:00:06.3]} 46. Kf2 {[%clk 0:00:20.7]} 46... Kd5 {[%clk 0:00:04.4]}
47. Qd8+ {[%clk 0:00:18.7]} 47... Ke5 {[%clk 0:00:04.3]} 48. Qe7+ {[%clk
0:00:18.4]} 48... Kf4 {[%clk 0:00:02.9]} 49. g3+ {[%clk 0:00:04.3]} 49... Kxg4
{[%clk 0:00:03.3]} 50. Qg7+ {[%clk 0:00:04.1]} 50... Kh5 {[%clk 0:00:02.7]} 51.
g4+ {[%clk 0:00:03.2]} 51... Kh4 {[%clk 0:00:03.3]} 52. Qh6+ {[%clk 0:00:03.5]}
52... Kxg4 {[%clk 0:00:03.9]} 53. Qg7+ {[%clk 0:00:04.2]} 53... Kf4 {[%clk
0:00:04.4]} 54. Qf7+ {[%clk 0:00:04.6]} 54... Ke5 {[%clk 0:00:04.7]} 55. Qe7+
{[%clk 0:00:04.8]} 55... Kd4 {[%clk 0:00:05.3]} 56. Qf6+ {[%clk 0:00:04.7]}
56... Kd5 {[%clk 0:00:05]} 57. Qf7+ {[%clk 0:00:04.8]} 57... Kd6 {[%clk
0:00:05.4]} 58. Qf8+ {[%clk 0:00:04.9]} 58... Kd7 {[%clk 0:00:05.9]} 59. Qg7+
{[%clk 0:00:04.8]} 59... Ke6 {[%clk 0:00:05.7]} 60. Qh6+ {[%clk 0:00:03.8]}
60... Ke5 {[%clk 0:00:05.6]} 61. Qh8+ {[%clk 0:00:03.8]} 61... Kf4 {[%clk
0:00:05.7]} 62. Qh6+ {[%clk 0:00:03.6]} 62... Kg4 {[%clk 0:00:05.8]} 63. Qg7+
{[%clk 0:00:03]} 63... Kf4 {[%clk 0:00:06.2]} 64. Qg3+ {[%clk 0:00:03.2]} 64...
Kf5 {[%clk 0:00:05.5]} 65. Qh3+ {[%clk 0:00:02.4]} 65... Kf6 {[%clk 0:00:05.7]}
66. Qh8+ {[%clk 0:00:02.8]} 66... Kf7 {[%clk 0:00:05.9]} 67. Qh5+ {[%clk
0:00:02.9]} 67... Kg7 {[%clk 0:00:06.3]} 68. Qg4+ {[%clk 0:00:03.1]} 68... Qg6
{[%clk 0:00:06.6]} 69. Qxg6+ {[%clk 0:00:03.2]} 69... Kxg6 {[%clk 0:00:06.6]}
1/2-1/2

[Event "Late-Titled-Tuesday-Blitz-February-06-2024"]
[Site "Chess.com"]
[Date "2024.02.06"]
[Round "11"]
[White "only_strong_moves"]
[Black "ural58"]
[Result "0-1"]
[WhiteElo "2634"]
[BlackElo "2493"]
[TimeControl "180+1"]
[EndTime "16:06:29 PST"]
[Termination "ural58 won by resignation"]

1. e4 {[%clk 0:03:00.9]} 1... d5 {[%clk 0:02:53.3]} 2. exd5 {[%clk 0:03:00.8]}
2... Qxd5 {[%clk 0:02:53.1]} 3. Nc3 {[%clk 0:03:01.7]} 3... Qa5 {[%clk
0:02:52.8]} 4. d4 {[%clk 0:03:02.3]} 4... Nf6 {[%clk 0:02:52.8]} 5. Bc4 {[%clk
0:03:02.5]} 5... Nc6 {[%clk 0:02:51.6]} 6. Ne2 {[%clk 0:03:02.3]} 6... Be6
{[%clk 0:02:47]} 7. Bxe6 {[%clk 0:03:01]} 7... fxe6 {[%clk 0:02:47.3]} 8. Nf4
{[%clk 0:02:50.4]} 8... O-O-O {[%clk 0:02:46.7]} 9. Nxe6 {[%clk 0:02:49.2]} 9...
Rd6 {[%clk 0:02:46.9]} 10. Nxf8 {[%clk 0:02:43.6]} 10... Rxd4 {[%clk 0:02:40.2]}
11. Qe2 {[%clk 0:02:39.3]} 11... Rxf8 {[%clk 0:02:31.2]} 12. Be3 {[%clk
0:02:38.5]} 12... Rd7 {[%clk 0:02:20]} 13. O-O {[%clk 0:02:38.7]} 13... e5
{[%clk 0:02:16.9]} 14. Rad1 {[%clk 0:02:38.9]} 14... Nd4 {[%clk 0:02:15.5]} 15.
Bxd4 {[%clk 0:02:38.9]} 15... exd4 {[%clk 0:02:15.5]} 16. Nb5 {[%clk 0:02:32]}
16... Rfd8 {[%clk 0:02:09]} 17. Qc4 {[%clk 0:02:22.1]} 17... Qb6 {[%clk
0:01:57.6]} 18. a4 {[%clk 0:02:21.4]} 18... a6 {[%clk 0:01:57.1]} 19. Na3 {[%clk
0:02:21.1]} 19... Qxb2 {[%clk 0:01:47.6]} 20. Rd3 {[%clk 0:02:21.1]} 20... Qb6
{[%clk 0:01:42.4]} 21. Rb1 {[%clk 0:02:21]} 21... Qc6 {[%clk 0:01:41.8]} 22.
Qxc6 {[%clk 0:02:01.5]} 22... bxc6 {[%clk 0:01:42]} 23. Nc4 {[%clk 0:02:02.4]}
23... Rd5 {[%clk 0:01:34.4]} 24. Rdb3 {[%clk 0:01:56.6]} 24... Kd7 {[%clk
0:01:31.4]} 25. Rg3 {[%clk 0:01:56.6]} 25... g6 {[%clk 0:01:28]} 26. Rf3 {[%clk
0:01:56.6]} 26... Rf5 {[%clk 0:01:22.1]} 27. Rd3 {[%clk 0:01:55.9]} 27... c5
{[%clk 0:01:21]} 28. f3 {[%clk 0:01:44.7]} 28... Nd5 {[%clk 0:01:19.8]} 29. Kf2
{[%clk 0:01:37.7]} 29... g5 {[%clk 0:01:06]} 30. Rb7 {[%clk 0:01:36.5]} 30... g4
{[%clk 0:01:01.7]} 31. Ra7 {[%clk 0:01:35.1]} 31... Nb4 {[%clk 0:00:55.8]} 32.
Rd2 {[%clk 0:01:33.2]} 32... gxf3 {[%clk 0:00:55.5]} 33. g4 {[%clk 0:01:32.5]}
33... Rf6 {[%clk 0:00:37.7]} 34. c3 {[%clk 0:01:32.6]} 34... Nc6 {[%clk
0:00:35.2]} 35. Rxa6 {[%clk 0:01:32.9]} 35... Rh6 {[%clk 0:00:30.6]} 36. cxd4
{[%clk 0:01:29.3]} 36... Rxh2+ {[%clk 0:00:29.2]} 37. Kxf3 {[%clk 0:01:27.2]}
37... Rxd2 {[%clk 0:00:27.8]} 38. Nxd2 {[%clk 0:01:28.1]} 38... Nxd4+ {[%clk
0:00:27.8]} 39. Kg3 {[%clk 0:01:26.5]} 39... Nc6 {[%clk 0:00:25.6]} 40. Ne4
{[%clk 0:01:24.8]} 40... c4 {[%clk 0:00:22.4]} 41. Nf6+ {[%clk 0:01:23.8]} 41...
Kd6 {[%clk 0:00:21.2]} 42. Ne4+ {[%clk 0:01:24.3]} 42... Kd5 {[%clk 0:00:20.6]}
43. Nc3+ {[%clk 0:01:24]} 43... Kd4 {[%clk 0:00:20.4]} 44. Nb5+ {[%clk
0:01:24.1]} 44... Kc5 {[%clk 0:00:20.6]} 45. Nxc7 {[%clk 0:01:23.2]} 45... Rd3+
{[%clk 0:00:18.9]} 46. Kf4 {[%clk 0:01:22.9]} 46... c3 {[%clk 0:00:18.6]} 47.
Ne6+ {[%clk 0:01:23.4]} 47... Kd5 {[%clk 0:00:17.5]} 48. Nc7+ {[%clk 0:01:23.8]}
48... Kc5 {[%clk 0:00:17]} 49. Ne6+ {[%clk 0:01:24]} 49... Kd5 {[%clk 0:00:17]}
50. Nc7+ {[%clk 0:01:17.3]} 50... Kd6 {[%clk 0:00:16.5]} 51. Nb5+ {[%clk
0:01:16.8]} 51... Kc5 {[%clk 0:00:16.8]} 52. Na7 {[%clk 0:01:03.2]} 52... Nd4
{[%clk 0:00:12.7]} 53. Ke4 {[%clk 0:00:18.3]} 53... Rd1 {[%clk 0:00:12.8]} 54.
Nb5 {[%clk 0:00:09.6]} 54... Nxb5 {[%clk 0:00:07.7]} 55. axb5 {[%clk 0:00:10.5]}
55... Kxb5 {[%clk 0:00:08]} 56. Ra2 {[%clk 0:00:10.7]} 56... Rd2 {[%clk
0:00:07.5]} 57. Ra3 {[%clk 0:00:09]} 57... Kb4 {[%clk 0:00:07.4]} 58. Ra8 {[%clk
0:00:08.5]} 58... c2 {[%clk 0:00:07.6]} 59. Rc8 {[%clk 0:00:08.8]} 59... Rh2
{[%clk 0:00:06.7]} 60. Kf5 {[%clk 0:00:08.1]} 60... Kb3 {[%clk 0:00:06.8]} 61.
Rb8+ {[%clk 0:00:08.6]} 61... Ka2 {[%clk 0:00:06.8]} 62. Ra8+ {[%clk 0:00:08.7]}
62... Kb1 {[%clk 0:00:07]} 63. Rb8+ {[%clk 0:00:09.6]} 63... Kc1 {[%clk
0:00:07.1]} 64. Kf6 {[%clk 0:00:09.4]} 64... Rh3 {[%clk 0:00:07.5]} 65. g5
{[%clk 0:00:09.1]} 65... Kd2 {[%clk 0:00:07.7]} 66. Rd8+ {[%clk 0:00:08.9]}
66... Rd3 {[%clk 0:00:07.8]} 67. Rc8 {[%clk 0:00:08.9]} 67... c1=Q {[%clk
0:00:08]} 68. Rxc1 {[%clk 0:00:08.7]} 68... Kxc1 {[%clk 0:00:08.5]} 69. Kg7
{[%clk 0:00:09.6]} 69... Rg3 {[%clk 0:00:08.4]} 70. Kh6 {[%clk 0:00:09.4]} 70...
Rg1 {[%clk 0:00:08.6]} 71. Kh5 {[%clk 0:00:09.3]} 71... Rh1+ {[%clk 0:00:08.8]}
72. Kg4 {[%clk 0:00:09.7]} 72... Kd2 {[%clk 0:00:09.4]} 73. Kf5 {[%clk
0:00:10.6]} 73... Kd3 {[%clk 0:00:09.8]} 74. Kf6 {[%clk 0:00:11.5]} 74... Ke4
{[%clk 0:00:10.1]} 75. Kg7 {[%clk 0:00:12.4]} 75... Kf5 {[%clk 0:00:09.8]} 76.
g6 {[%clk 0:00:13]} 76... hxg6 {[%clk 0:00:10]} 0-1

[Event "Late-Titled-Tuesday-Blitz-February-06-2024"]
[Site "Chess.com"]
[Date "2024.02.06"]
[Round "11"]
[White "Chempiblinka"]
[Black "HaryKane"]
[Result "0-1"]
[WhiteElo "2369"]
[BlackElo "2567"]
[TimeControl "180+1"]
[EndTime "16:06:35 PST"]
[Termination "HaryKane won by checkmate"]

1. Nf3 {[%clk 0:03:00.9]} 1... d5 {[%clk 0:02:58.3]} 2. g3 {[%clk 0:03:01.1]}
2... Nd7 {[%clk 0:02:54.5]} 3. Bg2 {[%clk 0:03:01.5]} 3... e5 {[%clk 0:02:53.5]}
4. d3 {[%clk 0:03:01.7]} 4... Ngf6 {[%clk 0:02:50.6]} 5. O-O {[%clk 0:03:02.2]}
5... Be7 {[%clk 0:02:48.9]} 6. b3 {[%clk 0:03:02.7]} 6... O-O {[%clk 0:02:48.7]}
7. Bb2 {[%clk 0:03:03.1]} 7... d4 {[%clk 0:02:41.3]} 8. c3 {[%clk 0:02:45.2]}
8... c5 {[%clk 0:02:40.8]} 9. Nbd2 {[%clk 0:02:37.8]} 9... Re8 {[%clk
0:02:39.3]} 10. Nc4 {[%clk 0:02:36.1]} 10... Bf8 {[%clk 0:02:34.7]} 11. Rc1
{[%clk 0:02:30.6]} 11... Rb8 {[%clk 0:02:29.6]} 12. a4 {[%clk 0:02:14]} 12... a6
{[%clk 0:02:21.1]} 13. a5 {[%clk 0:01:52]} 13... h6 {[%clk 0:02:18.2]} 14. e3
{[%clk 0:01:41.1]} 14... dxe3 {[%clk 0:02:08.5]} 15. fxe3 {[%clk 0:01:40.9]}
15... Qc7 {[%clk 0:01:57.7]} 16. e4 {[%clk 0:01:32.8]} 16... b5 {[%clk
0:01:55.6]} 17. axb6 {[%clk 0:01:31.8]} 17... Nxb6 {[%clk 0:01:52.8]} 18. Ne3
{[%clk 0:01:30.5]} 18... Ng4 {[%clk 0:01:41.4]} 19. Nd5 {[%clk 0:01:15.8]} 19...
Nxd5 {[%clk 0:01:40.2]} 20. exd5 {[%clk 0:01:16.7]} 20... Ne3 {[%clk 0:01:40.2]}
21. Qd2 {[%clk 0:01:12.2]} 21... Nxf1 {[%clk 0:01:38.6]} 22. Rxf1 {[%clk
0:01:13.1]} 22... Rxb3 {[%clk 0:01:36.1]} 23. Nh4 {[%clk 0:01:11.4]} 23... c4
{[%clk 0:01:32.6]} 24. dxc4 {[%clk 0:01:04.9]} 24... Qb6+ {[%clk 0:01:30.6]} 25.
Kh1 {[%clk 0:01:02.6]} 25... Rxb2 {[%clk 0:01:28.9]} 26. Qd3 {[%clk 0:01:01]}
26... Rf2 {[%clk 0:01:05.4]} 27. Rb1 {[%clk 0:00:45.5]} 27... Qa5 {[%clk
0:00:49.8]} 28. d6 {[%clk 0:00:20.1]} 28... Rd8 {[%clk 0:00:49.4]} 29. Qe3
{[%clk 0:00:17.8]} 29... Rf6 {[%clk 0:00:42.9]} 30. c5 {[%clk 0:00:16.3]} 30...
Qxc3 {[%clk 0:00:42.5]} 31. Qxc3 {[%clk 0:00:15.1]} 31... g5 {[%clk 0:00:35.6]}
32. Nf3 {[%clk 0:00:14.3]} 32... Bg7 {[%clk 0:00:32.9]} 33. Nxe5 {[%clk
0:00:13.3]} 33... Re6 {[%clk 0:00:30.4]} 34. Re1 {[%clk 0:00:11.1]} 34... Rde8
{[%clk 0:00:29.2]} 35. c6 {[%clk 0:00:07.6]} 35... Rxd6 {[%clk 0:00:28.2]} 36.
Qc5 {[%clk 0:00:06.7]} 36... Rde6 {[%clk 0:00:25.5]} 37. Bd5 {[%clk 0:00:04.4]}
37... Rxe5 {[%clk 0:00:21.7]} 38. Rxe5 {[%clk 0:00:04.9]} 38... Rxe5 {[%clk
0:00:21.8]} 39. Qd6 {[%clk 0:00:05.1]} 39... Bh3 {[%clk 0:00:18]} 40. Qd8+
{[%clk 0:00:04.8]} 40... Kh7 {[%clk 0:00:17.9]} 41. Kg1 {[%clk 0:00:04.5]} 41...
Re2 {[%clk 0:00:12.5]} 42. Bxf7 {[%clk 0:00:03.3]} 42... Re1+ {[%clk 0:00:09.2]}
43. Kf2 {[%clk 0:00:03.3]} 43... Rf1+ {[%clk 0:00:10.1]} 44. Ke2 {[%clk
0:00:03.8]} 44... Rxf7 {[%clk 0:00:10]} 45. c7 {[%clk 0:00:04.3]} 45... Rf8
{[%clk 0:00:08.6]} 46. Qd3+ {[%clk 0:00:04.6]} 46... Kh8 {[%clk 0:00:08.7]} 47.
Qd8 {[%clk 0:00:04.6]} 47... Bc8 {[%clk 0:00:07.8]} 48. Qd6 {[%clk 0:00:04.3]}
48... a5 {[%clk 0:00:07.6]} 49. Qc6 {[%clk 0:00:04.6]} 49... Kh7 {[%clk
0:00:05.7]} 50. Qc5 {[%clk 0:00:04.8]} 50... Re8+ {[%clk 0:00:05.4]} 51. Kd2
{[%clk 0:00:03.6]} 51... Re5 {[%clk 0:00:03.5]} 52. Qc2+ {[%clk 0:00:04]} 52...
Kh8 {[%clk 0:00:02.6]} 53. Qc6 {[%clk 0:00:04.5]} 53... Re6 {[%clk 0:00:02.6]}
54. Qc5 {[%clk 0:00:04.7]} 54... Re8 {[%clk 0:00:02.6]} 55. Qc2 {[%clk
0:00:05.2]} 55... a4 {[%clk 0:00:02.5]} 56. Qxa4 {[%clk 0:00:05]} 56... Re7
{[%clk 0:00:03.1]} 57. Qc6 {[%clk 0:00:05.2]} 57... Rf7 {[%clk 0:00:02.9]} 58.
Qc5 {[%clk 0:00:05.6]} 58... Rf8 {[%clk 0:00:03.8]} 59. Qc6 {[%clk 0:00:05.9]}
59... Kg8 {[%clk 0:00:03.8]} 60. Qc4+ {[%clk 0:00:06.3]} 60... Kh8 {[%clk
0:00:04.1]} 61. Kc2 {[%clk 0:00:05.8]} 61... Re8 {[%clk 0:00:04.4]} 62. Qc6
{[%clk 0:00:06]} 62... Bf5+ {[%clk 0:00:04.3]} 63. Kb3 {[%clk 0:00:04.9]} 63...
Rf8 {[%clk 0:00:04.9]} 64. Qd6 {[%clk 0:00:04.9]} 64... Bc8 {[%clk 0:00:05.1]}
65. Kc4 {[%clk 0:00:05.2]} 65... Re8 {[%clk 0:00:04.5]} 66. Qd3 {[%clk
0:00:04.1]} 66... Be6+ {[%clk 0:00:03.9]} 67. Kb4 {[%clk 0:00:04]} 67... Bf8+
{[%clk 0:00:04.1]} 68. Ka4 {[%clk 0:00:03.9]} 68... Ra8+ {[%clk 0:00:03.7]} 69.
Kb5 {[%clk 0:00:03.7]} 69... Re8 {[%clk 0:00:03.1]} 70. Kc6 {[%clk 0:00:04.6]}
70... Bc8 {[%clk 0:00:03.2]} 71. Qc3+ {[%clk 0:00:05.1]} 71... Kg8 {[%clk
0:00:02.9]} 72. Qc4+ {[%clk 0:00:05.4]} 72... Re6+ {[%clk 0:00:03.8]} 73. Qxe6+
{[%clk 0:00:05]} 73... Bxe6 {[%clk 0:00:03.5]} 74. Kb7 {[%clk 0:00:05.9]} 74...
Kf7 {[%clk 0:00:04]} 75. c8=Q {[%clk 0:00:06.3]} 75... Bxc8+ {[%clk 0:00:04.3]}
76. Kxc8 {[%clk 0:00:06.4]} 76... Kf6 {[%clk 0:00:04.1]} 77. Kd7 {[%clk
0:00:07.3]} 77... Kf5 {[%clk 0:00:04.5]} 78. Ke8 {[%clk 0:00:07.4]} 78... Bc5
{[%clk 0:00:04.2]} 79. Kf7 {[%clk 0:00:08.3]} 79... Bg1 {[%clk 0:00:04.4]} 80.
h4 {[%clk 0:00:06.5]} 80... g4 {[%clk 0:00:04.9]} 81. h5 {[%clk 0:00:06.6]}
81... Bf2 {[%clk 0:00:05.3]} 82. Kg7 {[%clk 0:00:06.5]} 82... Bxg3 {[%clk
0:00:05.9]} 83. Kxh6 {[%clk 0:00:07.4]} 83... Bf4+ {[%clk 0:00:06.4]} 84. Kg7
{[%clk 0:00:07.7]} 84... g3 {[%clk 0:00:07.1]} 85. h6 {[%clk 0:00:08.6]} 85...
Bxh6+ {[%clk 0:00:07.2]} 86. Kxh6 {[%clk 0:00:08.9]} 86... g2 {[%clk 0:00:08.1]}
87. Kh5 {[%clk 0:00:09.4]} 87... g1=Q {[%clk 0:00:08.8]} 88. Kh4 {[%clk
0:00:10.2]} 88... Qg4# {[%clk 0:00:08.4]} 0-1

[Event "Late-Titled-Tuesday-Blitz-February-06-2024"]
[Site "Chess.com"]
[Date "2024.02.06"]
[Round "11"]
[White "GadimbayliA"]
[Black "AryanTari"]
[Result "1-0"]
[WhiteElo "2854"]
[BlackElo "2915"]
[TimeControl "180+1"]
[EndTime "16:06:40 PST"]
[Termination "GadimbayliA won by resignation"]

1. e4 {[%clk 0:02:59.1]} 1... e5 {[%clk 0:02:48]} 2. Nf3 {[%clk 0:02:57]} 2...
Nc6 {[%clk 0:02:48.4]} 3. Nc3 {[%clk 0:02:57.9]} 3... Nf6 {[%clk 0:02:43.7]} 4.
d4 {[%clk 0:02:57.6]} 4... exd4 {[%clk 0:02:44.2]} 5. Nxd4 {[%clk 0:02:58.5]}
5... Bb4 {[%clk 0:02:44.5]} 6. Nxc6 {[%clk 0:02:58.2]} 6... bxc6 {[%clk
0:02:45.4]} 7. Bd3 {[%clk 0:02:58.9]} 7... d5 {[%clk 0:02:45.1]} 8. exd5 {[%clk
0:02:59.8]} 8... O-O {[%clk 0:02:43.3]} 9. O-O {[%clk 0:02:59.9]} 9... cxd5
{[%clk 0:02:43.6]} 10. Bg5 {[%clk 0:02:59.8]} 10... Be7 {[%clk 0:02:39.2]} 11.
Bxf6 {[%clk 0:02:59.2]} 11... Bxf6 {[%clk 0:02:39.2]} 12. Nxd5 {[%clk
0:03:00.1]} 12... Bxb2 {[%clk 0:02:36.1]} 13. Rb1 {[%clk 0:03:00.3]} 13... Ba3
{[%clk 0:02:34]} 14. Qf3 {[%clk 0:02:47.8]} 14... Be6 {[%clk 0:01:59.3]} 15. Nf4
{[%clk 0:02:44.4]} 15... Qf6 {[%clk 0:01:15.6]} 16. Nxe6 {[%clk 0:02:19]} 16...
Qxf3 {[%clk 0:01:06.5]} 17. Bxh7+ {[%clk 0:02:17.6]} 17... Kh8 {[%clk
0:01:06.5]} 18. gxf3 {[%clk 0:02:18.1]} 18... fxe6 {[%clk 0:01:05.8]} 19. Be4
{[%clk 0:02:15.5]} 19... Rab8 {[%clk 0:01:06.4]} 20. Rb3 {[%clk 0:02:10.9]}
20... Bd6 {[%clk 0:01:06.4]} 21. Re1 {[%clk 0:02:06.8]} 21... Kg8 {[%clk
0:00:56.9]} 22. Bc6 {[%clk 0:01:54.2]} 22... Kf7 {[%clk 0:00:47.9]} 23. Bd7
{[%clk 0:01:54.1]} 23... e5 {[%clk 0:00:47.2]} 24. Bc6 {[%clk 0:01:52]} 24...
Rb6 {[%clk 0:00:46.2]} 25. Be4 {[%clk 0:01:52.1]} 25... Ra6 {[%clk 0:00:43.3]}
26. Rb7 {[%clk 0:01:49.8]} 26... Kf6 {[%clk 0:00:42]} 27. Bd5 {[%clk 0:01:46]}
27... Ra5 {[%clk 0:00:42.4]} 28. Bb3 {[%clk 0:01:43.3]} 28... Rc8 {[%clk
0:00:29.2]} 29. Rd1 {[%clk 0:00:58.3]} 29... Bc5 {[%clk 0:00:28.4]} 30. Rd5
{[%clk 0:00:56.6]} 30... Bb6 {[%clk 0:00:24]} 31. Rxa5 {[%clk 0:00:56.3]} 31...
Bxa5 {[%clk 0:00:24.9]} 32. Rxa7 {[%clk 0:00:56.7]} 32... Bb6 {[%clk 0:00:25.6]}
33. Ra6 {[%clk 0:00:44.9]} 33... Rd8 {[%clk 0:00:26.1]} 34. a4 {[%clk
0:00:44.2]} 34... Rd1+ {[%clk 0:00:22.5]} 35. Kg2 {[%clk 0:00:44.2]} 35... Ra1
{[%clk 0:00:23.4]} 36. Ra8 {[%clk 0:00:33.4]} 36... g5 {[%clk 0:00:23.3]} 37.
Rf8+ {[%clk 0:00:32.1]} 37... Kg6 {[%clk 0:00:23.5]} 38. Rg8+ {[%clk 0:00:31.2]}
38... Kf6 {[%clk 0:00:23.7]} 39. Rf8+ {[%clk 0:00:31]} 39... Kg6 {[%clk
0:00:24]} 40. Bc4 {[%clk 0:00:28.7]} 40... Rxa4 {[%clk 0:00:23.1]} 41. Bd3+
{[%clk 0:00:29.2]} 41... Kh6 {[%clk 0:00:16.2]} 42. Rf6+ {[%clk 0:00:24.7]}
42... Kh5 {[%clk 0:00:16.4]} 43. Bf5 {[%clk 0:00:21.7]} 43... g4 {[%clk
0:00:12]} 44. Bxg4+ {[%clk 0:00:21.1]} 44... Kg5 {[%clk 0:00:12.6]} 45. Rf5+
{[%clk 0:00:21.5]} 45... Kg6 {[%clk 0:00:13.1]} 46. Rxe5 {[%clk 0:00:21.9]}
46... Rd4 {[%clk 0:00:11.9]} 47. Re2 {[%clk 0:00:21.2]} 47... Bc5 {[%clk
0:00:10.9]} 48. h4 {[%clk 0:00:20.4]} 48... Bd6 {[%clk 0:00:11.4]} 49. Re6+
{[%clk 0:00:20.8]} 49... Kf7 {[%clk 0:00:11.6]} 50. Re2 {[%clk 0:00:21]} 50...
Ra4 {[%clk 0:00:06]} 51. h5 {[%clk 0:00:17.3]} 51... Ra5 {[%clk 0:00:05.6]} 52.
Re6 {[%clk 0:00:14.6]} 52... Rc5 {[%clk 0:00:03.2]} 53. Rg6 {[%clk 0:00:14.2]}
53... Rxc2 {[%clk 0:00:02.5]} 54. Be6+ {[%clk 0:00:14.5]} 54... Ke7 {[%clk
0:00:01.6]} 55. h6 {[%clk 0:00:14.7]} 55... Be5 {[%clk 0:00:02.2]} 56. h7 {[%clk
0:00:14]} 56... Bd4 {[%clk 0:00:02.7]} 57. Bf5 {[%clk 0:00:11.1]} 57... Rxf2+
{[%clk 0:00:03.1]} 58. Kg3 {[%clk 0:00:11.1]} 58... Rf1 {[%clk 0:00:02.5]} 59.
Rg8 {[%clk 0:00:11.4]} 59... Rh1 {[%clk 0:00:02.1]} 60. Bh3 {[%clk 0:00:11]}
60... Rg1+ {[%clk 0:00:01.6]} 61. Kh2 {[%clk 0:00:10.8]} 61... Rc1 {[%clk
0:00:01]} 62. h8=Q {[%clk 0:00:11]} 62... Bxh8 {[%clk 0:00:01.6]} 63. Rxh8
{[%clk 0:00:11.9]} 63... c5 {[%clk 0:00:02.5]} 64. Kg3 {[%clk 0:00:11]} 64... c4
{[%clk 0:00:02.8]} 65. Rc8 {[%clk 0:00:11.4]} 65... c3 {[%clk 0:00:03.3]} 66.
Bf5 {[%clk 0:00:11.3]} 66... Kd6 {[%clk 0:00:03.3]} 67. Kf4 {[%clk 0:00:11]}
67... Kd5 {[%clk 0:00:03.7]} 68. Be4+ {[%clk 0:00:11.2]} 68... Kd4 {[%clk
0:00:03.9]} 69. Kf5 {[%clk 0:00:11.5]} 69... Rh1 {[%clk 0:00:03.8]} 70. Rd8+
{[%clk 0:00:10.3]} 70... Kc4 {[%clk 0:00:04.3]} 71. Rc8+ {[%clk 0:00:09]} 71...
Kd4 {[%clk 0:00:04.4]} 72. Rd8+ {[%clk 0:00:08.5]} 72... Kc4 {[%clk 0:00:04.5]}
73. Ke5 {[%clk 0:00:09.1]} 73... Rh5+ {[%clk 0:00:04.2]} 74. Bf5 {[%clk
0:00:09.7]} 74... Kb3 {[%clk 0:00:02.2]} 75. Rb8+ {[%clk 0:00:09.8]} 75... Kc4
{[%clk 0:00:02.3]} 76. Rc8+ {[%clk 0:00:10.1]} 76... Kb3 {[%clk 0:00:02.9]} 77.
f4 {[%clk 0:00:10.1]} 77... Rh1 {[%clk 0:00:03]} 78. Be4 {[%clk 0:00:10]} 78...
Rh5+ {[%clk 0:00:01.9]} 79. f5 {[%clk 0:00:10]} 79... Rh8 {[%clk 0:00:02.1]} 80.
Rxh8 {[%clk 0:00:09.5]} 1-0